bitfinex/quotes_SOLUSD_20230112
["timestamp","ask_amount","ask_price","bid_price","bid_amount"]
[1673531997082,20.0,16.364,16.336,134.0124]
[1673531997271,17.96,16.363,16.337,19.14496728]
[1673531997492,45.85,16.362,16.337,19.14496728]
[1673531997703,37.0,16.361,16.337,19.14496728]
[1673531997921,23.01,16.36,16.337,19.14496728]
[1673531998134,17.0,16.359,16.337,19.14496728]
[1673531998539,45.85,16.362,16.338,20.0]
[1673531998751,17.0,16.361,16.338,20.0]
[1673531998957,45.84,16.364,16.339,38.28993456]
[1673531999177,45.83,16.367,16.339,19.14496728]
[1673531999383,45.83,16.367,16.339,56.98066109]
[1673531999597,20.0,16.366,16.339,56.98066109]
[1673531999920,45.84,16.364,16.341,20.0]
[1673532000135,20.0,16.366,16.341,20.0]
[1673532000330,20.0,16.366,16.342,19.14496728]
[1673532000539,48.57358668,16.372,16.343,20.0]
[1673532000867,45.81,16.376,16.344,19.14496728]
[1673532001055,45.81,16.376,16.345,112.4203]
[1673532001264,20.0,16.379,16.345,112.4203]
[1673532001265,45.8,16.377,16.346,20.0]
[1673532001496,21.1,16.37,16.346,56.14496728]
[1673532001702,65.83,16.369,16.347,19.14496728]
[1673532002235,21.09,16.36,16.331,20.0]
[1673532002549,21.09,16.36,16.341,19.14496728]
[1673532002755,63.81,16.359,16.341,19.14496728]
[1673532002952,63.81,16.359,16.333,20.0]
[1673532003166,63.81,16.359,16.334,19.14496728]
[1673532003501,20.98,16.35,16.326,32.53533566]
[1673532003700,20.0,16.349,16.332,19.14496728]
[1673532004028,0.96,16.348,16.332,19.14496728]
[1673532004439,0.96,16.348,16.323,37.83569381]
[1673532004644,0.96,16.348,16.319,62.44]
[1673532004645,0.96,16.348,16.324,6.54194]
[1673532004856,45.89,16.347,16.327,19.14496728]
[1673532005051,0.96,16.346,16.327,19.14496728]
[1673532005268,20.0,16.349,16.327,19.14496728]
[1673532005473,20.0,16.349,16.326,37.83569381]
[1673532005684,45.88,16.348,16.322,20.0]
[1673532005904,153.20666728,16.356,16.322,20.0]
[1673532005905,45.86,16.355,16.326,37.83569381]
[1673532006135,105.65,16.36,16.326,37.83569381]
[1673532006136,6.60445,16.354,16.33,21.16]
[1673532006551,6.60445,16.354,16.331,20.0]
[1673532006751,6.60445,16.354,16.331,135.60991535]
[1673532006961,6.60445,16.354,16.332,101.11852216]
[1673532007171,6.60445,16.354,16.333,20.0]
[1673532007394,6.60445,16.354,16.333,88.68030294]
[1673532007713,39.95937868,16.368,16.335,20.0]
[1673532007931,39.95937868,16.368,16.336,20.0]
[1673532007932,6.60445,16.367,16.336,20.0]
[1673532008122,6.60445,16.367,16.336,39.14496728]
[1673532008325,6.60445,16.367,16.337,19.14496728]
[1673532008537,20.0,16.365,16.338,20.0]
[1673532008863,6.59406,16.364,16.339,56.14496728]
[1673532009078,52.43406,16.364,16.339,58.28993456]
[1673532009298,45.84,16.364,16.339,20.0]
[1673532009601,20.0,16.363,16.338,20.0]
[1673532009813,45.85,16.362,16.34,19.14496728]
[1673532010003,45.83,16.368,16.342,20.0]
[1673532010211,20.0,16.369,16.342,20.0]
[1673532010212,45.83,16.369,16.343,20.0]
[1673532010423,20.0,16.375,16.344,20.0]
[1673532010661,45.81,16.374,16.345,130.5799]
[1673532011055,45.81,16.374,16.345,168.86983456]
[1673532011271,45.81,16.374,16.346,19.14496728]
[1673532011481,20.0,16.369,16.347,20.0]
[1673532011682,20.0,16.369,16.339,37.83569381]
[1673532011898,21.16,16.36,16.346,19.14496728]
[1673532012127,17.96,16.359,16.346,19.14496728]
[1673532012654,17.96,16.359,16.337,20.0]
[1673532012855,0.96,16.358,16.337,39.14496728]
[1673532013269,0.96,16.358,16.338,19.14496728]
[1673532013481,0.96,16.357,16.339,20.0]
[1673532013803,0.96,16.357,16.34,19.14496728]
[1673532014640,0.96,16.357,16.341,26.53514]
[1673532014843,164.1784,16.374,16.342,6.53474]
[1673532015051,164.1784,16.374,16.342,44.37043381]
[1673532015260,20.98,16.37,16.343,26.53434]
[1673532015470,208.2,16.369,16.343,20.0]
[1673532015789,21.16,16.36,16.344,19.14496728]
[1673532016213,21.16,16.36,16.33,20.97]
[1673532016424,188.2,16.358,16.337,19.14496728]
[1673532016642,17.96,16.357,16.337,19.14496728]
[1673532016859,188.2,16.356,16.337,19.14496728]
[1673532017046,17.96,16.355,16.337,38.28993456]
[1673532017380,20.96,16.354,16.33,37.83569381]
[1673532017704,21.16,16.35,16.328,19.14496728]
[1673532017898,188.2,16.348,16.331,6.53914]
[1673532018218,46.84,16.349,16.331,6.53914]
[1673532018219,21.1,16.34,16.331,6.53914]
[1673532018433,20.0,16.343,16.331,6.53914]
[1673532018628,188.2,16.344,16.331,6.53914]
[1673532018629,0.96,16.342,16.331,6.53914]
[1673532018834,0.96,16.341,16.331,6.53914]
[1673532019059,0.96,16.34,16.331,6.53914]
[1673532019276,12.7843541,16.329,16.318,116.6701]
[1673532019469,12.7843541,16.329,16.319,6.54395]
[1673532019679,12.7843541,16.329,16.319,25.68891728]
[1673532019905,0.96,16.328,16.32,19.14496728]
[1673532020112,0.96,16.328,16.321,6.54315]
[1673532020437,20.0,16.327,16.317,32.53533566]
[1673532020623,45.95,16.326,16.314,19.14496728]
[1673532020831,0.96,16.325,16.314,19.14496728]
[1673532021044,45.94,16.328,16.315,19.14496728]
[1673532021270,0.96,16.328,16.315,19.14496728]
[1673532021584,0.96,16.328,16.293,111.96426415]
[1673532021782,46.9,16.328,16.294,6.55399]
[1673532022434,37.96,16.327,16.296,20.0]
[1673532023056,37.96,16.327,16.297,44.38847381]
[1673532023367,37.96,16.327,16.298,26.55238]
[1673532023588,35.94898564,16.327,16.299,20.0]
[1673532023777,45.95,16.326,16.299,37.83569381]
[1673532023982,17.0,16.325,16.3,37.83569381]
[1673532024194,240.75445,16.324,16.3,37.83569381]
[1673532024422,26.60445,16.323,16.3,37.83569381]
[1673532024615,69.56445,16.322,16.3,37.83569381]
[1673532024946,26.60445,16.321,16.3,37.83569381]
[1673532025156,26.60445,16.321,16.291,113.9503]
[1673532025157,52.56445,16.32,16.291,113.9503]
[1673532025370,43.60445,16.319,16.292,20.0]
[1673532025560,52.57445,16.318,16.293,37.83569381]
[1673532025769,23.60445,16.317,16.293,37.83569381]
[1673532025982,6.60445,16.316,16.293,37.83569381]
[1673532026297,6.60445,16.316,16.293,56.98066109]
[1673532026503,6.60445,16.316,16.294,20.0]
[1673532026842,6.60445,16.316,16.3,105.94]
[1673532027031,45.93,16.332,16.3,105.94]
[1673532027240,6.60445,16.328,16.301,97.07989394]
[1673532027445,6.60445,16.328,16.301,122.29901839]
[1673532027679,6.60445,16.328,16.302,58.99989394]
[1673532027996,6.60445,16.328,16.302,37.93492666]
[1673532028316,20.0,16.327,16.303,20.0]
[1673532028496,6.60445,16.326,16.303,20.0]
[1673532028710,6.60445,16.326,16.304,20.0]
[1673532028933,6.60445,16.326,16.305,20.0]
[1673532029140,6.60445,16.326,16.305,39.14496728]
[1673532029344,6.60445,16.326,16.306,77.94066109]
[1673532029569,6.60445,16.326,16.307,20.0]
[1673532029773,45.93,16.332,16.307,20.0]
[1673532029986,20.0,16.331,16.308,37.0]
[1673532030196,234.13,16.332,16.31,20.0]
[1673532030510,45.93,16.333,16.311,20.0]
[1673532030828,45.91,16.338,16.311,20.0]
[1673532031241,20.0,16.336,16.312,20.0]
[1673532031563,45.88,16.348,16.32,21.16]
[1673532031765,45.87,16.352,16.321,20.96]
[1673532031980,6.60445,16.351,16.322,20.0]
[1673532032179,6.60445,16.351,16.323,20.0]
[1673532032388,20.0,16.35,16.323,20.0]
[1673532032594,188.2,16.348,16.324,36.14496728]
[1673532032823,41.16,16.35,16.321,37.83569381]
[1673532032824,188.2,16.346,16.321,37.83569381]
[1673532033025,144.90496728,16.35,16.31,125.59]
[1673532033026,188.2,16.344,16.318,31.54579111]
[1673532033225,20.0,16.341,16.318,31.54579111]
[1673532033444,188.2,16.339,16.319,36.14496728]
[1673532033672,45.91,16.34,16.319,36.14496728]
[1673532033985,20.0,16.339,16.32,19.14496728]
[1673532034183,20.0,16.337,16.321,20.0]
[1673532034395,20.0,16.337,16.322,6.54275]
[1673532034606,20.0,16.337,16.323,20.0]
[1673532035227,17.0,16.336,16.321,20.0]
[1673532035438,20.0,16.337,16.324,19.14496728]
[1673532035660,20.0,16.337,16.321,20.0]
[1673532035868,20.0,16.337,16.322,19.14496728]
[1673532036070,20.0,16.337,16.323,20.0]
[1673532036817,20.0,16.337,16.321,19.14496728]
[1673532037032,20.0,16.337,16.324,19.14496728]
[1673532037221,20.0,16.337,16.32,20.0]
[1673532037432,20.0,16.337,16.311,57.93492666]
[1673532037433,20.0,16.337,16.313,153.24919381]
[1673532037756,20.0,16.337,16.31,105.59]
[1673532037757,45.92,16.336,16.318,31.54579111]
[1673532037970,65.92,16.337,16.319,20.0]
[1673532038168,20.0,16.337,16.319,39.14496728]
[1673532038380,20.0,16.337,16.32,19.14496728]
[1673532038589,20.0,16.337,16.321,20.0]
[1673532039014,20.0,16.337,16.321,39.14496728]
[1673532039241,62.92,16.336,16.308,20.0]
[1673532039550,62.92,16.336,16.317,19.14496728]
[1673532039872,45.92,16.336,16.317,19.14496728]
[1673532040070,20.0,16.337,16.317,19.14496728]
[1673532040272,45.91,16.338,16.317,19.14496728]
[1673532040483,20.0,16.339,16.319,20.0]
[1673532040703,20.0,16.339,16.32,37.0]
[1673532040901,20.0,16.339,16.32,56.14496728]
[1673532041464,20.0,16.339,16.32,37.0]
[1673532041652,20.0,16.339,16.321,19.14496728]
[1673532041861,20.0,16.339,16.322,20.0]
[1673532042088,45.9,16.341,16.323,20.0]
[1673532042278,45.89,16.347,16.324,0.96]
[1673532042491,20.0,16.349,16.324,21.06496728]
[1673532042707,20.0,16.35,16.325,200.72731777]
[1673532043032,20.0,16.35,16.325,219.87228505]
[1673532043255,20.0,16.35,16.326,88.65075839]
[1673532043439,20.0,16.35,16.326,87.69075839]
[1673532043649,20.0,16.35,16.327,70.69075839]
[1673532043883,20.0,16.35,16.328,37.0]
[1673532044078,20.0,16.348,16.329,20.0]
[1673532044283,20.0,16.348,16.329,39.14496728]
[1673532044498,17.0,16.347,16.329,20.0]
[1673532044820,20.0,16.348,16.329,20.0]
[1673532045027,20.0,16.35,16.331,20.0]
[1673532045242,31.27045984,16.357,16.332,20.0]
[1673532045243,151.0416,16.353,16.332,20.0]
[1673532045564,82.44,16.352,16.332,56.14496728]
[1673532045755,65.87,16.352,16.332,56.14496728]
[1673532045964,65.87,16.352,16.332,20.0]
[1673532046188,65.87,16.352,16.327,20.0]
[1673532046712,17.0,16.351,16.327,20.0]
[1673532046924,45.88,16.35,16.327,39.14496728]
[1673532047115,20.0,16.352,16.328,20.0]
[1673532047324,65.86,16.358,16.33,21.16]
[1673532047656,45.85,16.362,16.331,28.45914]
[1673532047853,31.27045984,16.363,16.332,17.0]
[1673532048063,234.04,16.365,16.332,17.0]
[1673532048064,20.0,16.361,16.333,20.0]
[1673532048273,45.85,16.36,16.334,117.6516]
[1673532048480,45.85,16.36,16.335,20.0]
[1673532048801,114.5055,16.362,16.336,1.92]
[1673532049006,20.0,16.361,16.337,20.0]
[1673532049222,45.83,16.368,16.34,21.16]
[1673532049548,45.83,16.369,16.341,20.0]
[1673532049751,45.83,16.369,16.341,39.14496728]
[1673532049950,45.83,16.369,16.342,36.14496728]
[1673532050180,20.0,16.368,16.343,20.0]
[1673532050378,45.83,16.367,16.343,39.14496728]
[1673532050588,45.83,16.367,16.344,19.14496728]
[1673532050799,20.0,16.366,16.344,19.14496728]
[1673532051020,20.0,16.364,16.339,20.0]
[1673532051232,20.0,16.364,16.34,38.06496728]
[1673532051448,20.0,16.364,16.34,67.69075839]
[1673532051639,20.0,16.364,16.334,155.48729381]
[1673532051640,45.84,16.363,16.341,19.14496728]
[1673532051974,17.0,16.362,16.341,19.14496728]
[1673532052176,65.85,16.361,16.341,19.14496728]
[1673532052600,20.0,16.36,16.341,19.14496728]
[1673532052821,45.85,16.359,16.342,20.0]
[1673532053216,65.85,16.36,16.343,19.14496728]
[1673532053428,20.0,16.361,16.343,36.14496728]
[1673532053637,20.0,16.364,16.344,20.0]
[1673532053865,45.84,16.363,16.344,39.14496728]
[1673532054069,20.0,16.364,16.345,39.14496728]
[1673532054281,20.0,16.364,16.346,37.0]
[1673532054498,208.2,16.364,16.346,19.14496728]
[1673532054821,21.16,16.36,16.335,114.3788]
[1673532055131,208.2,16.358,16.341,38.28993456]
[1673532055344,45.86,16.357,16.341,19.14496728]
[1673532055546,62.86,16.357,16.341,19.14496728]
[1673532055739,45.86,16.357,16.341,19.14496728]
[1673532055953,20.0,16.364,16.341,19.14496728]
[1673532056164,20.0,16.364,16.342,20.0]
[1673532056385,208.2,16.364,16.342,72.77225999]
[1673532056590,45.84,16.363,16.343,19.14496728]
[1673532056921,20.0,16.362,16.343,71.91722727]
[1673532057124,45.85,16.361,16.344,69.77225999]
[1673532057533,20.0,16.362,16.345,19.14496728]
[1673532058166,20.0,16.36,16.345,19.14496728]
[1673532059116,20.0,16.364,16.346,20.0]
[1673532059313,45.83,16.369,16.347,1.92]
[1673532059646,45.82,16.37,16.347,146.36347086]
[1673532059864,20.0,16.369,16.348,160.46301838]
[1673532060050,188.2,16.377,16.348,160.46301838]
[1673532060256,234.01,16.376,16.349,103.99635171]
[1673532060577,45.78,16.384,16.35,245.61635171]
[1673532060906,20.0,16.385,16.352,20.0]
[1673532061105,45.78,16.384,16.353,20.96]
[1673532061315,45.78,16.384,16.354,0.96]
[1673532061643,45.78,16.384,16.354,144.97680419]
[1673532061961,20.98,16.38,16.355,164.01680419]
[1673532062165,45.8,16.379,16.356,20.0]
[1673532062383,45.8,16.379,16.356,39.14496728]
[1673532062592,40.0,16.378,16.356,19.14496728]
[1673532062812,188.2,16.376,16.34,125.72]
[1673532063001,65.81,16.375,16.356,19.14496728]
[1673532063419,17.0,16.374,16.356,19.14496728]
[1673532063629,45.81,16.373,16.356,19.14496728]
[1673532063854,37.0,16.372,16.356,19.14496728]
[1673532064597,45.81,16.374,16.356,19.14496728]
[1673532064792,20.0,16.375,16.356,19.14496728]
[1673532064996,45.8,16.377,16.357,20.0]
[1673532065217,65.8,16.378,16.356,31.54579111]
[1673532065432,20.0,16.378,16.357,51.54579111]
[1673532065644,45.8,16.379,16.36,21.16]
[1673532065840,20.0,16.387,16.362,20.0]
[1673532066051,20.0,16.387,16.363,20.96]
[1673532066376,107.493,16.389,16.364,0.96]
[1673532066589,45.75,16.395,16.365,0.96]
[1673532066789,45.75,16.395,16.366,0.96]
[1673532067012,43.25,16.397,16.37,21.16]
[1673532067210,43.25,16.397,16.371,135.1009]
[1673532067421,43.25,16.397,16.372,17.0]
[1673532067748,43.25,16.397,16.373,20.0]
[1673532067947,43.25,16.397,16.374,20.96]
[1673532068160,101.9855,16.398,16.375,20.0]
[1673532068359,45.75,16.397,16.375,20.0]
[1673532068576,45.75,16.397,16.376,17.0]
[1673532068917,101.9855,16.398,16.377,20.0]
[1673532069098,45.75,16.397,16.377,89.73642499]
[1673532069310,45.75,16.397,16.378,20.10496728]
[1673532069513,45.74,16.399,16.379,20.0]
[1673532069734,0.4,16.4,16.38,21.98]
[1673532069946,0.4,16.4,16.381,40.0]
[1673532070162,0.4,16.4,16.382,17.96]
[1673532070373,0.4,16.4,16.382,17.0]
[1673532070590,0.4,16.4,16.382,69.73642499]
[1673532070775,21.56,16.4,16.383,19.14496728]
[1673532070987,45.74,16.399,16.383,19.14496728]
[1673532071210,37.56107991,16.382,16.371,111.4566]
[1673532071420,37.56107991,16.382,16.375,50.69075839]
[1673532071745,37.56107991,16.382,16.376,19.14496728]
[1673532072565,37.56107991,16.382,16.377,20.0]
[1673532072791,37.56107991,16.382,16.378,20.0]
[1673532073001,0.4,16.4,16.379,20.0]
[1673532073202,0.4,16.4,16.38,21.02]
[1673532073422,0.4,16.4,16.381,20.0]
[1673532073635,0.4,16.4,16.382,37.0]
[1673532073849,0.4,16.4,16.384,20.0]
[1673532074060,0.4,16.4,16.385,37.0]
[1673532074454,0.4,16.4,16.385,56.14496728]
[1673532074673,0.4,16.4,16.386,19.14496728]
[1673532074904,0.4,16.4,16.387,40.0]
[1673532075327,0.4,16.4,16.388,19.14496728]
[1673532075752,0.4,16.4,16.389,20.0]
[1673532075947,60.0,16.388,16.386,19.14496728]
[1673532076577,60.0,16.388,16.373,39.67363107]
[1673532076791,20.0,16.387,16.376,19.14496728]
[1673532077225,20.0,16.387,16.369,31.54579111]
[1673532077547,45.78,16.386,16.369,19.14496728]
[1673532077757,45.78,16.387,16.37,20.0]
[1673532078284,45.78,16.387,16.371,19.14496728]
[1673532078472,20.0,16.387,16.371,19.14496728]
[1673532079102,45.78,16.386,16.36,21.16]
[1673532079310,62.78,16.386,16.361,117.8754]
[1673532079522,62.78,16.386,16.367,19.14496728]
[1673532079748,45.78,16.386,16.368,20.0]
[1673532079941,60.0,16.388,16.368,20.0]
[1673532080153,60.0,16.388,16.369,39.14496728]
[1673532080572,60.0,16.388,16.37,19.14496728]
[1673532080786,60.0,16.388,16.371,20.96]
[1673532080996,60.0,16.388,16.372,20.0]
[1673532081216,60.0,16.388,16.372,51.54579111]
[1673532081420,60.0,16.388,16.373,20.0]
[1673532081635,60.0,16.388,16.374,37.0]
[1673532081846,60.0,16.388,16.375,21.92]
[1673532082052,60.0,16.388,16.376,37.0]
[1673532082250,60.0,16.388,16.376,43.52117]
[1673532082460,60.0,16.388,16.377,21.06496728]
[1673532082685,0.4,16.4,16.381,20.0]
[1673532082902,0.4,16.4,16.382,17.0]
[1673532083220,0.4,16.4,16.383,20.0]
[1673532083419,0.4,16.4,16.385,20.0]
[1673532083622,0.4,16.4,16.385,40.0]
[1673532083836,0.4,16.4,16.386,39.14496728]
[1673532084154,0.4,16.4,16.387,19.14496728]
[1673532084353,0.4,16.4,16.388,20.0]
[1673532084562,0.4,16.4,16.389,20.0]
[1673532084778,0.4,16.4,16.389,39.14496728]
[1673532085004,21.38,16.4,16.39,38.13923954]
[1673532085213,233.94,16.399,16.383,19.14496728]
[1673532085620,233.94,16.399,16.371,20.0]
[1673532085621,20.0,16.398,16.372,43.68590621]
[1673532085831,188.2,16.396,16.376,19.14496728]
[1673532086062,20.0,16.394,16.376,19.14496728]
[1673532086393,17.0,16.393,16.376,19.14496728]
[1673532086606,20.0,16.392,16.376,19.14496728]
[1673532086820,17.0,16.391,16.376,19.14496728]
[1673532087023,45.77,16.39,16.376,19.14496728]
[1673532087235,45.76,16.391,16.376,19.14496728]
[1673532087450,45.76,16.393,16.376,19.14496728]
[1673532087661,188.2,16.398,16.377,20.0]
[1673532087972,45.75,16.397,16.377,20.0]
[1673532088283,65.74,16.399,16.377,20.0]
[1673532088474,188.2,16.398,16.377,20.0]
[1673532088683,20.0,16.396,16.378,20.0]
[1673532089017,33.6044,16.39,16.379,19.14496728]
[1673532089229,33.6044,16.39,16.38,20.0]
[1673532090373,17.0,16.389,16.38,20.0]
[1673532090794,33.6044,16.39,16.376,20.0]
[1673532091225,33.6044,16.39,16.377,19.14496728]
[1673532091447,17.0,16.389,16.377,19.14496728]
[1673532091630,17.0,16.389,16.378,20.0]
[1673532092065,33.6044,16.39,16.379,19.14496728]
[1673532092579,33.6044,16.39,16.381,20.0]
[1673532092793,33.6044,16.39,16.382,20.0]
[1673532093001,33.6044,16.39,16.382,58.28993456]
[1673532093212,33.6044,16.39,16.382,20.0]
[1673532093429,33.6044,16.39,16.383,19.14496728]
[1673532093624,8.6044,16.39,16.384,20.0]
[1673532093834,0.4,16.4,16.385,17.96]
[1673532094049,0.4,16.4,16.385,151.53066728]
[1673532094269,0.4,16.4,16.386,19.14496728]
[1673532095094,0.4,16.4,16.381,20.0]
[1673532095301,0.4,16.4,16.382,134.53066728]
[1673532095515,0.4,16.4,16.383,20.0]
[1673532095721,0.4,16.4,16.384,37.0]
[1673532095956,0.4,16.4,16.384,56.14496728]
[1673532096175,0.4,16.4,16.385,19.14496728]
[1673532096365,0.4,16.4,16.386,20.0]
[1673532096581,21.56,16.4,16.382,34.38256445]
[1673532096783,233.94,16.399,16.382,34.38256445]
[1673532096989,45.74,16.399,16.384,19.14496728]
[1673532097205,0.4,16.4,16.373,152.46956445]
[1673532097416,0.4,16.4,16.374,19.14496728]
[1673532097641,0.4,16.4,16.375,20.0]
[1673532097852,0.4,16.4,16.376,23.52117]
[1673532098166,0.4,16.4,16.377,6.52077]
[1673532098374,0.4,16.4,16.378,18.92]
[1673532098591,0.4,16.4,16.379,20.0]
[1673532098805,0.4,16.4,16.38,17.96]
[1673532098996,0.4,16.4,16.381,20.0]
[1673532099408,0.4,16.4,16.382,19.14496728]
[1673532099620,45.74,16.399,16.376,34.38256445]
[1673532099833,45.74,16.399,16.376,53.52753173]
[1673532100375,205.2,16.398,16.374,20.0]
[1673532100690,205.2,16.398,16.369,36.86003954]
[1673532100691,253.95,16.397,16.37,54.38256445]
[1673532100888,17.0,16.396,16.37,54.38256445]
[1673532101103,65.75,16.395,16.37,73.52753173]
[1673532101305,205.2,16.394,16.37,73.52753173]
[1673532101511,17.0,16.394,16.37,73.52753173]
[1673532101725,17.0,16.394,16.37,94.64753173]
[1673532102264,17.0,16.394,16.371,0.96]
[1673532102462,132.902,16.398,16.371,1.92]
[1673532102674,132.902,16.398,16.372,25.66772728]
[1673532102675,112.902,16.398,16.372,25.66772728]
[1673532102879,112.902,16.398,16.373,20.96]
[1673532103092,112.902,16.398,16.374,17.0]
[1673532103299,0.4,16.4,16.38,105.8]
[1673532103517,399.26275904,16.43,16.382,20.0]
[1673532103518,31.27045984,16.423,16.382,20.0]
[1673532103733,178.511,16.425,16.391,0.69393821]
[1673532103928,178.511,16.425,16.391,17.0]
[1673532103929,52.27445,16.424,16.391,17.0]
[1673532104135,52.27445,16.424,16.392,83.50666835]
[1673532104136,27.27445,16.424,16.392,83.50666835]
[1673532104353,188.2,16.419,16.392,39.14496728]
[1673532104566,105.62,16.42,16.393,19.14496728]
[1673532104567,21.16,16.41,16.393,19.14496728]
[1673532104801,45.71,16.409,16.392,20.0]
[1673532104998,20.0,16.408,16.385,20.0]
[1673532105188,20.0,16.408,16.39,19.14496728]
[1673532105396,20.0,16.408,16.393,19.14496728]
[1673532105608,20.0,16.408,16.394,20.0]
[1673532106028,21.16,16.41,16.395,19.14496728]
[1673532106246,45.7,16.415,16.395,19.14496728]
[1673532106455,45.7,16.415,16.397,20.0]
[1673532106674,45.69,16.417,16.398,20.0]
[1673532106884,45.69,16.417,16.398,39.14496728]
[1673532107083,45.69,16.417,16.399,19.14496728]
[1673532107290,297.0165,16.416,16.4,20.0]
[1673532107519,188.2,16.414,16.4,20.0]
[1673532107705,20.0,16.413,16.401,19.14496728]
[1673532108129,45.67,16.424,16.402,20.0]
[1673532108448,187.62275904,16.438,16.404,20.0]
[1673532108449,20.0,16.428,16.404,20.0]
[1673532108684,20.0,16.428,16.405,26.50964]
[1673532108895,20.0,16.428,16.406,25.42925]
[1673532109226,45.63,16.438,16.41,21.16]
[1673532109415,20.0,16.441,16.412,20.0]
[1673532109631,45.63,16.44,16.412,20.0]
[1673532109828,45.63,16.44,16.413,20.0]
[1673532110046,45.63,16.44,16.413,39.14496728]
[1673532110253,45.63,16.44,16.414,36.14496728]
[1673532110472,20.0,16.439,16.415,40.0]
[1673532110686,20.0,16.437,16.415,39.14496728]
[1673532110894,188.2,16.435,16.416,19.14496728]
[1673532111085,31.27045984,16.437,16.416,19.14496728]
[1673532111086,45.64,16.434,16.416,38.28993456]
[1673532111300,31.27045984,16.437,16.41,28.8983744]
[1673532111301,70.53057629,16.412,16.41,28.8983744]
[1673532111732,70.53057629,16.412,16.398,20.0]
[1673532111943,70.53057629,16.412,16.398,40.0]
[1673532112161,70.53057629,16.412,16.399,39.14496728]
[1673532112376,20.0,16.411,16.399,39.14496728]
[1673532112685,70.53057629,16.412,16.4,40.30496728]
[1673532112877,70.53057629,16.412,16.401,26.51123]
[1673532113082,70.53057629,16.412,16.401,58.28993456]
[1673532113293,70.53057629,16.412,16.352,181.41855891]
[1673532113294,20.0,16.411,16.402,19.14496728]
[1673532114573,70.53057629,16.412,16.403,20.0]
[1673532115192,70.53057629,16.412,16.394,20.0]
[1673532115193,17.0,16.411,16.394,20.0]
[1673532115400,20.0,16.41,16.401,19.14496728]
[1673532115613,17.0,16.409,16.392,110.6124]
[1673532115823,70.53057629,16.412,16.395,19.14496728]
[1673532116033,20.0,16.411,16.396,20.0]
[1673532116249,70.53057629,16.412,16.396,20.0]
[1673532116459,70.53057629,16.412,16.397,19.14496728]
[1673532116985,70.53057629,16.412,16.392,110.6124]
[1673532117198,70.53057629,16.412,16.393,20.0]
[1673532117412,70.53057629,16.412,16.394,20.0]
[1673532117626,70.53057629,16.412,16.394,39.14496728]
[1673532117829,70.53057629,16.412,16.395,39.14496728]
[1673532118151,70.53057629,16.412,16.396,39.14496728]
[1673532118457,70.53057629,16.412,16.397,17.0]
[1673532118690,70.53057629,16.412,16.398,20.0]
[1673532118889,70.53057629,16.412,16.398,39.14496728]
[1673532119290,70.53057629,16.412,16.392,5.912]
[1673532119291,20.0,16.411,16.392,5.912]